Cogmind - Beta 9.6 @@@ ROGUE MODE // 2020.05.24 @ 19:43:50 Player: Decinym Result: Destroyed by G-34 Mercenary with Small Laser Performance ------------- Evolutions (0) 0 Regions Visited (2) 400 Robots Destroyed (13) 65 Value Destroyed (134) 134 Prototype IDs (0) 0 Alien Tech Used (0) 0 Bonus (0) 0 TOTAL SCORE: 599 Bonus ------- None Cogmind --------- Core Integrity 0/250 Matter 241/300 Energy 81/250 System Corruption 0% Temperature Cool (12) Movement Rolling (120) Ox2 Location -10/Mines Parts ------- > --- POWER (1) -------- Ion Engine > --- PROPULSION (2) --- Compact Wheel > --- UTILITY (2) ------ Large Storage Unit Large Storage Unit > --- WEAPON (2) ------- EM Pulse Gun EM Pulse Gun > --- INVENTORY (16) --- Ion Engine Light Ion Engine Light Ion Engine Compact Wheel Compact Wheel Medium Storage Unit EM Pulse Gun Light Assault Rifle Peak State ------------ > --- POWER ------------ Ion Engine > --- PROPULSION ------- Compact Wheel Compact Wheel > --- UTILITY ---------- Small Storage Unit Medium Storage Unit > --- WEAPON ----------- Light Assault Rifle Light Assault Rifle > --- INVENTORY -------- Ion Engine Ion Engine Light Ion Engine Light Ion Engine Compact Wheel Compact Wheel EM Pulse Gun EM Pulse Gun EM Pulse Gun Light Assault Rifle [Rating: 8] Favorites ----------- Power Ion Engine Engine Ion Engine Propulsion Compact Wheel Leg Aluminum Leg Wheel Compact Wheel Utility Small Storage Unit Storage Small Storage Unit Weapon Light Assault Rifle Energy Gun Medium Laser Ballistic Gun Light Assault Rifle Build | -11 -10 -10 ------- Run | Scr Mat Min Slots Evolved . | . . . Power . | . . . Propulsion . | . . . Utility . | . . . Weapon . | . . . Parts Attached 17 | . 14 3 Power 3 | . 2 1 Engine 3 | . 2 1 Core . | . . . Reactor . | . . . Propulsion 4 | . 4 . Treads . | . . . Leg . | . . . Wheel 4 | . 4 . Hover . | . . . Flight . | . . . Utility 4 | . 4 . Device . | . . . Storage 4 | . 4 . Processor . | . . . Hackware . | . . . Protection . | . . . Artifact . | . . . Weapon 6 | . 4 2 Energy Gun 2 | . . 2 Energy Cannon . | . . . Ballistic Gun 4 | . 4 . Ballistic Cannon . | . . . Launcher . | . . . Special Weapon . | . . . Impact Weapon . | . . . Slashing Weapon . | . . . Piercing Weapon . | . . . Special Melee Weapon . | . . . Unidentified Prototypes . | . . . Parts Lost 9 | . 5 4 Power 2 | . 1 1 Propulsion 2 | . 1 1 Utility . | . . . Weapon 5 | . 3 2 Highest Loss Streak 5 | . 5 4 Average Slot Usage (%) 94 | . 94 95 Engine 14 | . 14 14 Wheel 24 | . 24 23 Storage 25 | . 25 28 Energy Gun 4 | . 5 1 Ballistic Gun 22 | . 22 26 Naked Turns . | . . . Heaviest Build 39 | 11 39 39 Greatest Support 32 | 20 32 32 Greatest Overweight (x) 1 | . 1 1 Average Overweight (x) . | . . 1 Largest Inventory Capacity 16 | . 16 16 Average Capacity 10 | . 9 16 Most Carried 11 | . 11 11 Average Carried 8 | . 8 10 Final Capacity 16 | 6 16 16 Final Carried 11 | 6 11 8 Class Distribution -------------------- 100% | Mutant Dominant Class ---------------- Mutant | -10/Materials Mutant | -10/Mines Resources | -11 -10 -10 ----------- Run | Scr Mat Min Matter Collected 444 | 200 244 . Remotely . | . . . Salvage Created 342 | . 342 . Parts 24 | . 24 . Haulers Intercepted 2 | . 2 . Recyclers Shooed . | . . . Parts Field Recycled . | . . . Retrieved Matter . | . . . Parts Self-Destructed . | . . . Prevented . | . . . Kills | -11 -10 -10 ------- Run | Scr Mat Min Combat Hostiles Destroyed 10 | . 10 . Guns 10 | . 10 . Classes Destroyed 4 | . 4 . Hauler 2 | . 2 . Recycler 1 | . 1 . Swarmer 9 | . 9 . Grunt 1 | . 1 . Best Kill Streak 3 | . 3 . Combat Bots Only 3 | . 3 . Max Kills in Single Turn 2 | . 2 . Gunslinging 1 | . 1 . Exploded . | . . . Melee . | . . . Uniques/NPCs Destroyed . | . . . Combat | -11 -10 -10 -------- Run | Scr Mat Min Damage Taken 1016 | . 669 347 Core 256 | . 118 138 Absorbed by Shields . | . . . Core Remaining (%) 100 | 100 . . Volleys Fired 70 | . 54 16 Largest 2 | . 2 2 Hottest 80 | . 70 80 Shots Fired 126 | . 94 32 Gun 126 | . 94 32 Cannon . | . . . Launcher . | . . . Special . | . . . Kinetic 106 | . 77 29 Thermal 17 | . 17 . Explosive . | . . . Electromagnetic 3 | . . 3 Robot Hit Streak 8 | . 8 7 Robot Miss Streak 9 | . 9 2 Penetration Max . | . . . Secondary Targets 3 | . 3 . Max Gunslinging Chain 1 | . 1 . Shots Hit Robots 70 | . 48 22 Core Hits 23 | . 20 3 Critical Hits . | . . . Critical Kills . | . . . Critical Parts Destroyed . | . . . Melee Attacks . | . . . Impact . | . . . Slashing . | . . . Piercing . | . . . Sneak Attacks . | . . . Combat Hostiles . | . . . Follow-up Attacks . | . . . Damage Inflicted 624 | . 485 139 Guns 624 | . 485 139 Cannons . | . . . Explosions . | . . . Melee . | . . . Ramming . | . . . Kinetic 498 | . 359 139 Thermal 126 | . 126 . Explosive . | . . . Electromagnetic . | . . . Impact . | . . . Slashing . | . . . Piercing . | . . . Highest Corruption . | . . . Average Corruption . | . . . Corruption Purged . | . . . Overload Shots . | . . . Overflow Damage . | . . . Projectiles . | . . . Explosions . | . . . Melee . | . . . Knockbacks . | . . . Impact . | . . . Kinetic . | . . . Secondary . | . . . Self-Inflicted Damage . | . . . Shots . | . . . Rammed . | . . . Targets Rammed . | . . . Kicked . | . . . Crushed . | . . . Highest Temperature 59 | . 59 26 Average Temperature 20 | . 25 10 Received Heat Transfer 213 | . 12 201 Siege Activations . | . . . Robots Corrupted . | . . . Combat Hostiles . | . . . Parts Fried . | . . . Impact Corruptions . | . . . Robots Melted . | . . . Combat Hostiles . | . . . Parts Melted . | . . . Heat Transferred 370 | . 370 . Parts Sabotaged . | . . . Parts Stolen . | . . . Parts Stripped . | . . . Power Chain Reactions . | . . . Missiles Intercepted . | . . . Alert | -11 -10 -10 ------- Run | Scr Mat Min Peak Influence 177 | . 177 31 Average Influence 60 | . 67 24 Maximum Alert Level . | . . . Low Security (%) 100 | . 100 100 Level 1 . | . . . Level 2 . | . . . Level 3 . | . . . Level 4 . | . . . Level 5 . | . . . High Security . | . . . Max Security . | . . . Squads Dispatched 1 | . 1 . Investigation . | . . . Extermination . | . . . Reinforcement 1 | . 1 . Assault . | . . . Garrison . | . . . Intercept . | . . . Construction Impeded . | . . . Haulers Reinforced . | . . . Stealth | -11 -10 -10 --------- Run | Scr Mat Min Distress Signals . | . . . Communications Jammed . | . . . Distress Signals . | . . . Times Spotted 18 | . 15 3 Peak Tracking Total 5 | . 5 2 Tactical Retreats 2 | . 1 1 Traps | -11 -10 -10 ------- Run | Scr Mat Min Traps Triggered . | . . . Indirectly . | . . . Trap Hack Attempts . | . . . Triggered . | . . . Disarmed . | . . . Reprogrammed . | . . . Reused . | . . . Traps Extracted . | . . . Installed . | . . . Triggered . | . . . Machines | -11 -10 -10 ---------- Run | Scr Mat Min Machines Disabled . | . . . Max in Single Turn . | . . . Machines Sabotaged . | . . . Garrisons Compromised . | . . . Overloaded Fab Kills . | . . . Fab Network Shutdowns . | . . . Hacking | -11 -10 -10 --------- Run | Scr Mat Min Machines Accessed 2 | . 2 . Terminals 2 | . 2 . Fabricators . | . . . Repair Stations . | . . . Recycling Units . | . . . Scanalyzers . | . . . Garrison Access . | . . . Total Hacks 3 | . 3 . Successful . | . . . Failed 3 | . 3 . Catastrophic 1 | . 1 . Database Lockouts . | . . . Manual 3 | . 3 . Terminals 3 | . 3 . Fabricators . | . . . Repair Stations . | . . . Recycling Units . | . . . Scanalyzers . | . . . Garrison Access . | . . . Terminal Hacks . | . . . Fabricator Hacks . | . . . Repair Station Hacks . | . . . Recycling Unit Hacks . | . . . Scanalyzer . | . . . Garrison Access Hacks . | . . . Unauthorized Hacks . | . . . Terminals . | . . . Fabricators . | . . . Repair Stations . | . . . Recycling Units . | . . . Scanalyzers . | . . . Garrison Access . | . . . Data Cores Recovered . | . . . Used . | . . . Hacking Detections 2 | . 2 . Full Trace Events . | . . . Feedback Events . | . . . Feedback Blocked . | . . . Robot Schematics Acquired . | . . . Robots Built . | . . . Matter . | . . . Time . | . . . Total Robot Build Rating . | . . . Part Schematics Acquired . | . . . Parts Built . | . . . Matter . | . . . Time . | . . . Total Part Build Rating . | . . . Parts Repaired . | . . . Time . | . . . Parts Recycled . | . . . Recycled Matter . | . . . Retrieved Matter . | . . . Retrieved Components . | . . . Parts Scanalyzed . | . . . Part Schematics Acquired . | . . . Parts Damaged . | . . . Bothacking | -11 -10 -10 ------------ Run | Scr Mat Min Used RIF Installer . | . . . Robots Hacked . | . . . Non-combat . | . . . Combat . | . . . Robot Hacks Applied . | . . . Relay Couplers Released . | . . . Robots Rewired . | . . . Allies Hacked . | . . . Hacks Repelled . | . . . Allies | -11 -10 -10 -------- Run | Scr Mat Min Total Allies . | . . . Largest Group . | . . . Highest-Rated Group . | . . . Highest-Rated Ally . | . . . Total Orders . | . . . Ally Attacks . | . . . Total Damage . | . . . Kills . | . . . Allies Corrupted . | . . . Allies Melted . | . . . Intel | -11 -10 -10 ------- Run | Scr Mat Min Robot Analysis Total . | . . . Derelict Logs Recovered . | . . . Drone Launches . | . . . Drone Recoveries . | . . . Exploration | -11 -10 -10 ------------- Run | Scr Mat Min Turns Passed 624 | . 534 90 Spaces Moved 370 | 1 335 34 Core . | . . . Treads . | . . . Legs 11 | 1 10 . Wheels 359 | . 325 34 Hover . | . . . Flight . | . . . Fastest Speed 100 | 120 100 110 Average Speed 103 | 120 102 110 Slowest Speed 120 | 120 120 110 Overloaded Moves . | . . . Propulsion Burnouts . | . . . Robots Hopped . | . . . Cave-ins Triggered . | . . . Exploration Rate (%) 29 | 2 74 11 Regions Visited 2 Branch Regions 1 Pre-discovered Areas . | . . . Known Exits Taken . | . . . Unknown Exits Taken 2 | 1 1 . Scrap Searched . | . . . Spaces Dug . | . . . Terrain Destroyed . | . . . Melee . | . . . Projectile . | . . . AOE . | . . . Actions | -11 -10 -10 --------- Run | Scr Mat Min Total 506 | . 444 62 Wait 21 | . 12 9 Move 368 | . 334 34 Hop . | . . . Pick Up 18 | . 18 . Fast Attach 1 | . 1 . Attach 10 | . 7 3 Detach . | . . . Swap 6 | . 6 . Drop 12 | . 12 . Fire 70 | . 54 16 Melee . | . . . Ram . | . . . Kick . | . . . Crush . | . . . Escape Stasis . | . . . Rewire . | . . . Trap . | . . . Miscellaneous . | . . . Route ------- -11/Scrapyard -10/Materials (discovered 4 exits: [*Mat x3] / [*Min]) -10/Mines History --------- Turn | Location | Event 1 | -11/Scrapyard | Discovered new exit (range 0) 1 | -11/Scrapyard | Entered Materials 190 | -10/Materials | Discovered new exit (range 15) 260 | -10/Materials | Lost 5 parts (1p1n3w) 343 | -10/Materials | Build established: Mutant 350 | -10/Materials | Discovered new exit (range 7) 455 | -10/Materials | Discovered new exit (range 14) 510 | -10/Materials | Discovered new exit (range 16) 535 | -10/Materials | Entered Mines 560 | -10/Mines | Met a Derelict bent on vengeance 586 | -10/Mines | Core integrity fell below 50% 610 | -10/Mines | Core integrity fell below 20% 625 | -10/Mines | Destroyed by G-34 Mercenary with Small Laser Last Messages --------------- 00398_ Acquired 11 matter. 00428_ Dropped Sml. Storage Unit. 00452_ S-10 Pest destroyed. 00455_ Acquired 10 matter. 00455_ EXIT=FOUND 00470_ R-06 Scavenger collects Lgt. Ion Engine. 00474_ R-06 Scavenger collects Lgt. Assault Rifle. 00483_ A-02 Transporter destroyed. 00495_ Acquired 20 matter. 00496_ Acquired 33 matter. 00510_ EXIT=FOUND 00511_ Connecting with Terminal... 00521_ Dropped Sml. Storage Unit. 00525_ Dropped Med. Storage Unit. 00526_ Acquired Med. Storage Unit. LOCATION=UNKNOWN GOAL=ESCAPE 00591_ Com. Wheel destroyed. 00611_ Ion Engine destroyed. 00615_ Lgt. Assault Rifle destroyed. Map ----- +----------------------------------------------------+ | | | | | | | | | | | | | | | | | ???????????????????????????????? | | ???????????????????????????????? | | ???????????????????????????????? | | ???????????????????????????????? | | ???????????????????????????????? | | ???????????????????????????????? | | ?????????????????######????????? | | ?????????????????# ##???????? | | ?????????????????# ##??????? | | ?????????????????# ##?????? | | ?????????????????## """ ##????? | | ?????????????????## """ #????? | | ???????########### """ #????? | | ???? #????? | | ???????????##### ##????? | | ???????????????# ## #?????? | | ???????????????### ## ###???? | | ?????????????????### g @ #???? | | ???????????????????# ####g#???? | | ???????????????????# #??# #???? | | ?????????????????? #??# #???? | | ???????????????? #??# #???? | | ?????????????? ######### #???? | | ???????????? ??# #???? | | ?????????? ???# """#???? | | ?????????# ????# """#???? | | ?????????## ??? """#???? | | ??????????##? #???? | | ???????????? # """#???? | | ??????????? ?# """#???? | | ??????????? ??# ???????? | | ???????????? ????# ???????? | | ???????????? ?????# ???????? | | ??????????????????# ????????? | | ??????????????????# ?????????? | | ???????????????????? ?????????? | | ???????????????????????????????? | | ???????????????????????????????? | | ???????????????????????????????? | | ???????????????????????????????? | | ???????????????????????????????? | | ???????????????????????????????? | +----------------------------------------------------+ Best States ------------- Heat Dissipation 25 Energy Generation 10 Energy Capacity 250 Matter Stores 300 Matter Capacity 300 Sight Range 16 Terrain Scan Density 10 Evasion (%) 40 Item Schematics ----------------- None Robot Schematics ------------------ None Fabricated ------------ Nothing Alien Tech Used ----------------- None Achievements -------------- None Challenges ------------ None Game ------ Seed DirtyNuclearReactor Manual? 0 Play Time 00:09:14 Cumulative 289.0 hours Start 2020.05.24 @ 19:22:09 End 2020.05.24 @ 19:43:50 Sessions 2 Manual Loads 0 Difficulty Rogue Special Mode None Game No. 322 Rogue 322 Adventurer 0 Explorer 0 Win Type - Total 26 Types 16/3/1/1/2/0/3 Lore% 91 Gallery% 86 Achievement% 76 Wizard Run 0 Options --------- ASCII 0 Keyboard 0 Movement Arrows Keybinds 0 Fullscreen 2 Font 18/SmallcapsGlow Map View 76x50 Tactical HUD 1 Map Filters NONE Filters NONE Steam 1 RUN: a988568c-8958-4d9a-839e-75b477b04f9b